fUSD/lending_fUSD_20240107
["ID","MTS","AMOUNT","RATE_DAILY","PERIOD"]
[310682381,1704640339676,-500.0,0.00022495,2]
[310682382,1704640339686,-680.69,0.00022495,2]
[310682383,1704640339696,-644.88621407,0.00022495,2]
[310682384,1704640339706,-500.0,0.00022495,2]
[310682385,1704640339716,-504.41,0.00022495,2]
[310682386,1704640339727,-795.75,0.00022495,2]
[310682387,1704640339737,-608.91472214,0.00022495,2]
[310682388,1704640339746,-500.0,0.00022495,2]
[310682389,1704640339756,-500.0,0.00022495,2]
[310682390,1704640339765,-589.3,0.00022495,2]
[310682391,1704640339775,-558.31713609,0.00022495,2]
[310682392,1704640339784,-993.1,0.00022495,2]
[310682393,1704640339794,-500.0,0.00022495,2]
[310682394,1704640339803,-1112.95,0.00022495,2]
[310682395,1704640339813,-500.0,0.00022495,2]
[310682396,1704640339824,-500.0,0.00022495,2]
[310682397,1704640339835,-1159.87,0.00022495,2]
[310682398,1704640339844,-272.14266481,0.00022495,2]
[310682399,1704640339854,-505.4,0.00022495,2]
[310682400,1704640339864,-500.0,0.00022495,2]
[310682401,1704640339873,-500.0,0.00022495,2]
[310682402,1704640339883,-1080.45,0.00022495,2]
[310682403,1704640339894,-500.0,0.00022495,2]
[310682404,1704640339903,-2235.29,0.00022495,2]
[310682405,1704640339914,-500.0,0.00022495,2]
[310682406,1704640339924,-500.0,0.00022495,2]
[310682407,1704640339934,-953.54,0.00022495,2]
[310682408,1704640339943,-500.0,0.00022495,2]
[310682409,1704640339953,-500.0,0.00022495,2]
[310682410,1704640339963,-239.86904708,0.00022495,2]
[310682411,1704640339972,-500.0,0.00022495,2]
[310682412,1704640339982,-500.0,0.00022495,2]
[310682413,1704640339992,-577.93,0.00022495,2]
[310682414,1704640340001,-500.0,0.00022495,2]
[310682415,1704640340011,-2642.75,0.00022495,2]
[310682416,1704640340020,-500.0,0.00022495,2]
[310682417,1704640340029,-687.59,0.00022495,2]
[310682418,1704640340040,-667.93,0.00022495,2]
[310682419,1704640340049,-673.38,0.00022495,2]
[310682420,1704640340059,-194.64,0.00022495,2]
[310682421,1704640340068,-500.0,0.00022495,2]
[310682422,1704640340078,-1277.04,0.00022495,2]
[310682423,1704640340088,-568.05,0.00022495,2]
[310682424,1704640340098,-605.66,0.00022495,2]
[310682425,1704640340107,-4221.45,0.00022495,2]
[310682426,1704640340119,-500.0,0.00022495,2]
[310682427,1704640340129,-500.0,0.00022495,2]
[310682428,1704640340138,-500.0,0.00022495,2]
[310682429,1704640340147,-500.0,0.00022495,2]
[310682430,1704640340157,-361.21,0.00022495,2]
[310682431,1704640340167,-10561.09,0.00022495,2]
[310682432,1704640340176,-717.97,0.00022495,2]
[310682433,1704640340185,-524.74,0.00022495,2]
[310682434,1704640340195,-567.28,0.00022495,2]
[310682435,1704640340205,-500.0,0.00022495,2]
[310682436,1704640340214,-500.0,0.00022495,2]
[310682437,1704640340223,-500.0,0.00022495,2]
[310682438,1704640340233,-500.0,0.00022495,2]
[310682439,1704640340242,-2355.51,0.00022495,2]
[310682440,1704640340252,-500.0,0.00022495,2]
[310682441,1704640340261,-500.0,0.00022495,2]
[310682442,1704640340271,-1303.17,0.00022495,2]
[310682443,1704640340281,-500.0,0.00022495,2]
[310682444,1704640340290,-500.0,0.00022495,2]
[310682445,1704640340300,-602.87,0.00022495,2]
[310682446,1704640340310,-500.0,0.00022495,2]
[310682447,1704640340320,-500.0,0.00022495,2]
[310682448,1704640340330,-595.14,0.00022495,2]
[310682449,1704640340340,-500.0,0.00022495,2]
[310682450,1704640340350,-737.23,0.00022495,2]
[310682451,1704640340360,-500.0,0.00022495,2]
[310682452,1704640340370,-1384.31,0.00022495,2]
[310682453,1704640340379,-500.0,0.00022495,2]
[310682454,1704640340389,-500.0,0.00022495,2]
[310682455,1704640340399,-1059.44,0.00022495,2]
[310682456,1704640340408,-594.49,0.00022495,2]
[310682457,1704640340419,-500.0,0.00022495,2]
[310682458,1704640340428,-1235.19,0.00022495,2]
[310682459,1704640340438,-692.36,0.00022495,2]
[310682460,1704640340446,-643.76,0.00022495,2]
[310682461,1704640340456,-1168.29,0.00022495,2]
[310682462,1704640340466,-500.0,0.00022495,2]
[310682463,1704640340475,-500.0,0.00022495,2]
[310682464,1704640340485,-583.82,0.00022495,2]
[310682465,1704640340494,-1233.2,0.00022495,2]
[310682466,1704640340504,-862.89,0.00022495,2]
[310682467,1704640340515,-1901.45,0.00022495,2]
[310682468,1704640340525,-812.8,0.00022495,2]
[310682469,1704640340534,-994.9,0.00022495,2]
[310682470,1704640340543,-4748.3,0.00022495,2]
[310682471,1704640340554,-500.0,0.00022495,2]
[310682472,1704640340563,-515.95,0.00022495,2]
[310682473,1704640340573,-542.57,0.00022495,2]
[310682474,1704640340582,-797.5,0.00022495,2]
[310682475,1704640340592,-3821.82,0.00022495,2]
[310682476,1704640340602,-500.0,0.00022495,2]
[310682477,1704640340611,-702.59,0.00022495,2]
[310682478,1704640340622,-598.32,0.00022495,2]
[310682479,1704640340631,-500.0,0.00022495,2]
[310682480,1704640340640,-622.5,0.00022495,2]
[310682481,1704640340650,-514.08,0.00022495,2]
[310682482,1704640340659,-855.29,0.00022495,2]
[310682483,1704640340669,-1501.71,0.00022495,2]
[310682484,1704640340678,-1078.12,0.00022495,2]
[310682485,1704640340688,-613.78,0.00022495,2]
[310682486,1704640340698,-830.18,0.00022495,2]
[310682487,1704640340707,-865.64,0.00022495,2]
[310682488,1704640340717,-500.0,0.00022495,2]
[310682489,1704640340726,-500.0,0.00022495,2]
[310682490,1704640340736,-642.62,0.00022495,2]
[310682491,1704640340745,-569.34,0.00022495,2]
[310682492,1704640340754,-1062.92,0.00022495,2]
[310682493,1704640340764,-150.0,0.00022495,2]
[310682494,1704640340773,-2466.24,0.00022495,2]
[310682495,1704640340783,-2599.03,0.00022495,2]
[310682496,1704640340794,-1350.81,0.00022495,2]
[310682497,1704640340804,-230.40319175,0.00022496,2]
[310682498,1704640340815,-500.0,0.00022496,2]
[310682499,1704640340824,-500.0,0.00022496,2]
[310682500,1704640340834,-500.0,0.00022496,2]
[310682501,1704640340845,-500.0,0.00022496,2]
[310682502,1704640340855,-500.0,0.00022496,2]
[310682503,1704640340868,-500.0,0.00022496,2]
[310682504,1704640340887,-500.0,0.00022496,2]
[310682505,1704640340898,-330.53317007,0.00022496,2]
[310682506,1704640340910,-390.0878408,0.00022496,2]
[310682507,1704640340921,-500.0,0.00022496,2]
[310682508,1704640340933,-500.0,0.00022496,2]
[310682509,1704640340944,-500.0,0.00022496,2]
[310682510,1704640340956,-815.73,0.00022496,2]
[310682511,1704640340968,-500.0,0.00022496,2]
[310682512,1704640340978,-500.0,0.00022496,2]
[310682513,1704640340992,-500.0,0.00022496,2]
[310682514,1704640341003,-1262.61,0.00022496,2]
[310682515,1704640341015,-554.62080014,0.00022496,2]
[310682516,1704640341027,-500.0,0.00022496,2]
[310682517,1704640341038,-500.0,0.00022496,2]
[310682518,1704640341049,-500.0,0.00022496,2]
[310682519,1704640341060,-768.65,0.00022496,2]
[310682520,1704640341070,-893.84,0.00022496,2]
[310682521,1704640341080,-670.22,0.00022496,2]
[310682522,1704640341090,-500.0,0.00022496,2]
[310682523,1704640341100,-500.0,0.00022496,2]
[310682524,1704640341111,-500.0,0.00022496,2]
[310682525,1704640341127,-500.0,0.00022496,2]
[310682526,1704640341137,-602.96,0.00022496,2]
[310682527,1704640341146,-500.0,0.00022496,2]
[310682528,1704640341156,-500.0,0.00022496,2]
[310682529,1704640341166,-500.0,0.00022496,2]
[310682530,1704640341175,-588.15,0.00022496,2]
[310682531,1704640341185,-500.0,0.00022496,2]
[310682532,1704640341196,-560.82,0.00022496,2]
[310682533,1704640341205,-500.0,0.00022496,2]
[310682534,1704640341215,-624.46,0.00022496,2]
[310682535,1704640341225,-500.0,0.00022496,2]
[310682536,1704640341235,-503.6,0.00022496,2]
[310682537,1704640341244,-634.52,0.00022496,2]
[310682538,1704640341254,-677.06,0.00022496,2]
[310682539,1704640341263,-500.0,0.00022496,2]
[310682540,1704640341273,-528.74,0.00022496,2]
[310682541,1704640341283,-500.0,0.00022496,2]
[310682542,1704640341292,-511.14474627,0.00022496,2]
[310682543,1704640341301,-203.42593259,0.00022496,2]
[310682544,1704640341311,-500.0,0.00022496,2]
[310682545,1704640341320,-500.0,0.00022496,2]
[310682546,1704640341330,-500.0,0.00022496,2]
[310682547,1704640341340,-1947.98,0.00022496,2]
[310682548,1704640341350,-1416.95,0.00022496,2]
[310682549,1704640341360,-500.0,0.00022496,2]
[310682550,1704640341373,-500.0,0.00022496,2]
[310682551,1704640341384,-500.0,0.00022496,2]
[310682552,1704640341397,-525.59,0.00022496,2]
[310682553,1704640341408,-500.0,0.00022496,2]
[310682554,1704640341419,-506.3,0.00022496,2]
[310682555,1704640341428,-500.0,0.00022496,2]
[310682556,1704640341438,-500.0,0.00022496,2]
[310682557,1704640341448,-500.0,0.00022496,2]
[310682558,1704640341458,-863.3,0.00022496,2]
[310682559,1704640341468,-1303.58,0.00022496,2]
[310682560,1704640341479,-546.67709599,0.00022496,2]
[310682561,1704640341489,-594.3,0.00022496,2]
[310682562,1704640341499,-500.0,0.00022496,2]
[310682563,1704640341509,-500.0,0.00022496,2]
[310682564,1704640341519,-797.07,0.00022496,2]
[310682565,1704640341529,-500.0,0.00022496,2]
[310682566,1704640341539,-501.6,0.00022496,2]
[310682567,1704640341548,-500.0,0.00022496,2]
[310682568,1704640341558,-522.23,0.00022496,2]
[310682569,1704640341568,-500.0,0.00022496,2]
[310682570,1704640341577,-610.67,0.00022496,2]
[310682571,1704640341587,-518.60404477,0.00022496,2]
[310682572,1704640341597,-2080.75,0.00022496,2]
[310682573,1704640341607,-500.0,0.00022496,2]
[310682574,1704640341618,-591.54,0.00022496,2]
[310682575,1704640341628,-500.0,0.00022496,2]
[310682576,1704640341637,-500.0,0.00022496,2]
[310682577,1704640341647,-500.0,0.00022496,2]
[310682578,1704640341656,-500.0,0.00022496,2]
[310682579,1704640341667,-1111.37,0.00022496,2]
[310682580,1704640341677,-917.63,0.00022496,2]
[310682581,1704640341686,-557.78,0.00022496,2]
[310682582,1704640341696,-732.55,0.00022496,2]
[310682583,1704640341705,-507.95,0.00022496,2]
[310682584,1704640341715,-500.0,0.00022496,2]
[310682585,1704640341725,-500.0,0.00022496,2]
[310682586,1704640341734,-500.0,0.00022496,2]
[310682587,1704640341744,-504.41,0.00022496,2]
[310682588,1704640341754,-795.75,0.00022496,2]
[310682589,1704640341765,-500.0,0.00022496,2]
[310682590,1704640341775,-589.3,0.00022496,2]
[310682591,1704640341785,-500.0,0.00022496,2]
[310682592,1704640341795,-1112.95,0.00022496,2]
[310682593,1704640341806,-500.0,0.00022496,2]
[310682594,1704640341816,-500.0,0.00022496,2]
[310682595,1704640341826,-1159.87,0.00022496,2]
[310682596,1704640341835,-500.0,0.00022496,2]
[310682597,1704640341845,-500.0,0.00022496,2]
[310682598,1704640341854,-1080.45,0.00022496,2]
[310682599,1704640341863,-500.0,0.00022496,2]
[310682600,1704640341875,-500.0,0.00022496,2]
[310682601,1704640341885,-500.0,0.00022496,2]
[310682602,1704640341894,-953.54,0.00022496,2]
[310682603,1704640341904,-500.0,0.00022496,2]
[310682604,1704640341916,-500.0,0.00022496,2]
[310682605,1704640341925,-500.0,0.00022496,2]
[310682606,1704640341935,-500.0,0.00022496,2]
[310682607,1704640341945,-687.59,0.00022496,2]
[310682608,1704640341956,-673.38,0.00022496,2]
[310682609,1704640341966,-500.0,0.00022496,2]
[310682610,1704640341977,-500.0,0.00022496,2]
[310682611,1704640341986,-500.0,0.00022496,2]
[310682612,1704640341996,-567.28,0.00022496,2]
[310682613,1704640342005,-500.0,0.00022496,2]
[310682614,1704640342015,-500.0,0.00022496,2]
[310682615,1704640342024,-500.0,0.00022496,2]
[310682616,1704640342034,-602.87,0.00022496,2]
[310682617,1704640342044,-500.0,0.00022496,2]
[310682618,1704640342054,-500.0,0.00022496,2]
[310682619,1704640342063,-500.0,0.00022496,2]
[310682620,1704640342073,-415.25529881,0.00022496,2]
[310682621,1704640342083,-500.0,0.00022496,2]
[310682622,1704640342092,-500.0,0.00022496,2]
[310682623,1704640342102,-515.95,0.00022496,2]
[310682624,1704640342112,-624.71076692,0.00022496,2]
[310682625,1704640342123,-200.0,0.00022497,2]
[310682626,1704640342133,-322.05,0.00022497,2]
[310682627,1704640342143,-150.99,0.00022497,2]
[310682628,1704640342153,-579.68,0.00022497,2]
[310682629,1704640342163,-13923.33718324,0.000225,2]
[310682630,1704640342172,-1995.09187591,0.0002253,2]
[310682631,1704640342192,-1293.78,0.00022548,2]
[310682632,1704640342205,-4554.17050941,0.00022559,2]
[310682633,1704640342215,-258.88,0.00022562,2]
[310682634,1704640342225,-500.0,0.00022562,2]
[310682635,1704640342236,-500.0,0.00022562,2]
[310682636,1704640342476,-500.0,0.00022562,2]
[310682637,1704640342487,-500.0,0.00022562,2]
[310682638,1704640342497,-538.33,0.00022562,2]
[310682639,1704640342507,-500.0,0.00022562,2]
[310682640,1704640342516,-500.0,0.00022562,2]
[310682641,1704640342526,-500.0,0.00022562,2]
[310682642,1704640342536,-500.0,0.00022562,2]
[310682643,1704640342545,-202.52,0.00022562,2]
[310682644,1704640342555,-500.0,0.00022562,2]
[310682645,1704640342565,-500.0,0.00022562,2]
[310682646,1704640342575,-633.17695114,0.00022562,2]
[310682647,1704640342584,-672.87,0.00022562,2]
[310682648,1704640342594,-500.0,0.00022562,2]
[310682649,1704640342604,-191.62,0.00022562,2]
[310682650,1704640342613,-580.57981022,0.00022562,2]
[310682651,1704640342624,-607.52,0.00022562,2]
[310682652,1704640342634,-500.0,0.00022562,2]
[310682653,1704640342643,-653.27,0.00022562,2]
[310682654,1704640342652,-500.0,0.00022562,2]
[310682655,1704640342662,-531.86,0.00022562,2]
[310682656,1704640342672,-500.0,0.00022562,2]
[310682657,1704640342682,-586.56,0.00022562,2]
[310682658,1704640342691,-500.0,0.00022562,2]
[310682659,1704640342703,-500.0,0.00022562,2]
[310682660,1704640342713,-1989.71,0.00022562,2]
[310682661,1704640342722,-500.0,0.00022562,2]
[310682662,1704640342732,-528.04239781,0.00022562,2]
[310682663,1704640342741,-619.56,0.00022562,2]
[310682664,1704640342750,-577.93,0.00022562,2]
[310682665,1704640342759,-577.93,0.00022562,2]
[310682666,1704640342769,-577.93,0.00022562,2]
[310682667,1704640342778,-577.93,0.00022562,2]
[310682668,1704640342787,-577.96,0.00022562,2]
[310682669,1704640342797,-1385.44,0.00022562,2]
[310682670,1704640342806,-667.93,0.00022562,2]
[310682671,1704640342815,-667.93,0.00022562,2]
[310682672,1704640342825,-667.93,0.00022562,2]
[310682673,1704640342834,-667.93,0.00022562,2]
[310682674,1704640342844,-667.97,0.00022562,2]
[310682675,1704640342853,-3452.41,0.00022562,2]
[310682676,1704640342862,-500.0,0.00022562,2]
[310682677,1704640342872,-500.0,0.00022562,2]
[310682678,1704640342882,-4221.45,0.00022562,2]
[310682679,1704640342892,-4221.45,0.00022562,2]
[310682680,1704640342902,-4221.45,0.00022562,2]
[310682681,1704640342913,-4221.45,0.00022562,2]
[310682682,1704640342923,-4221.55,0.00022562,2]
[310682683,1704640342932,-500.0,0.00022562,2]
[310682684,1704640342942,-10561.09,0.00022562,2]
[310682685,1704640342951,-10561.09,0.00022562,2]
[310682686,1704640342961,-10561.09,0.00022562,2]
[310682687,1704640342970,-10561.09,0.00022562,2]
[310682688,1704640342980,-10561.23,0.00022562,2]
[310682689,1704640342989,-500.0,0.00022562,2]
[310682690,1704640342999,-306.63044075,0.00022562,2]
[310682691,1704640343009,-500.0,0.00022562,2]
[310682692,1704640343018,-923.68,0.00022562,2]
[310682693,1704640343028,-2355.51,0.00022562,2]
[310682694,1704640343037,-2355.51,0.00022562,2]
[310682695,1704640343046,-2355.51,0.00022562,2]
[310682696,1704640343056,-2355.51,0.00022562,2]
[310682697,1704640343065,-2355.74059006,0.00022562,2]
[310682698,1704640343075,-435.84,0.00022562,2]
[310682699,1704640343084,-1187.93,0.00022562,2]
[310682700,1704640343093,-500.0,0.00022562,2]
[310682701,1704640343103,-500.0,0.00022562,2]
[310682702,1704640343113,-569.28193681,0.00022562,2]
[310682703,1704640343122,-1245.78,0.00022562,2]
[310682704,1704640343132,-737.23,0.00022562,2]
[310682705,1704640343143,-737.23,0.00022562,2]
[310682706,1704640343155,-737.23,0.00022562,2]
[310682707,1704640343169,-737.23,0.00022562,2]
[310682708,1704640343179,-737.23,0.00022562,2]
[310682709,1704640343189,-326.72,0.00022562,2]
[310682710,1704640343199,-1059.44,0.00022562,2]
[310682711,1704640343209,-1059.44,0.00022562,2]
[310682712,1704640343219,-594.49,0.00022562,2]
[310682713,1704640343229,-1059.44,0.00022562,2]
[310682714,1704640343239,-1059.44,0.00022562,2]
[310682715,1704640343249,-594.49,0.00022562,2]
[310682716,1704640343259,-1059.57,0.00022562,2]
[310682717,1704640343268,-594.49,0.00022562,2]
[310682718,1704640343278,-594.49,0.00022562,2]
[310682719,1704640343288,-339.30378445,0.00022562,2]
[310682720,1704640343298,-594.51,0.00022562,2]
[310682721,1704640343308,-877.44,0.00022562,2]
[310682722,1704640343318,-500.0,0.00022562,2]
[310682723,1704640343329,-555.22,0.00022562,2]
[310682724,1704640343340,-643.76,0.00022562,2]
[310682725,1704640343351,-643.76,0.00022562,2]
[310682726,1704640343360,-643.76,0.00022562,2]
[310682727,1704640343371,-643.76,0.00022562,2]
[310682728,1704640343384,-643.95285928,0.00022562,2]
[310682729,1704640343395,-1379.42,0.00022562,2]
[310682730,1704640343405,-1168.29,0.00022562,2]
[310682731,1704640343414,-1168.29,0.00022562,2]
[310682732,1704640343425,-1168.29,0.00022562,2]
[310682733,1704640343435,-1168.29,0.00022562,2]
[310682734,1704640343445,-1168.4,0.00022562,2]
[310682735,1704640343455,-565.71,0.00022562,2]
[310682736,1704640343466,-1233.2,0.00022562,2]
[310682737,1704640343478,-1233.2,0.00022562,2]
[310682738,1704640343488,-1233.2,0.00022562,2]
[310682739,1704640343498,-1233.2,0.00022562,2]
[310682740,1704640343508,-1233.3,0.00022562,2]
[310682741,1704640343517,-500.0,0.00022562,2]
[310682742,1704640343527,-994.9,0.00022562,2]
[310682743,1704640343537,-994.9,0.00022562,2]
[310682744,1704640343546,-994.9,0.00022562,2]
[310682745,1704640343556,-994.9,0.00022562,2]
[310682746,1704640343566,-995.0,0.00022562,2]
[310682747,1704640343575,-719.19,0.00022562,2]
[310682748,1704640343586,-4748.3,0.00022562,2]
[310682749,1704640343595,-4106.6844454,0.00022562,2]
[310682750,1704640343877,-641.6155546,0.00022562,2]
[310682751,1704640343887,-4748.3,0.00022562,2]
[310682752,1704640343897,-4748.3,0.00022562,2]
[310682753,1704640343907,-4748.42000001,0.00022562,2]
[310682754,1704640343917,-533.97,0.00022562,2]
[310682755,1704640343928,-1401.54,0.00022562,2]
[310682756,1704640343938,-702.59,0.00022562,2]
[310682757,1704640343948,-702.59,0.00022562,2]
[310682758,1704640343958,-702.59,0.00022562,2]
[310682759,1704640343968,-702.59,0.00022562,2]
[310682760,1704640343979,-702.77,0.00022562,2]
[310682761,1704640343989,-598.32,0.00022562,2]
[310682762,1704640343998,-598.32,0.00022562,2]
[310682763,1704640344008,-598.32,0.00022562,2]
[310682764,1704640344017,-598.32,0.00022562,2]
[310682765,1704640344027,-598.5,0.00022562,2]
[310682766,1704640344037,-2342.34,0.00022562,2]
[310682767,1704640344047,-514.08,0.00022562,2]
[310682768,1704640344057,-514.08,0.00022562,2]
[310682769,1704640344067,-514.08,0.00022562,2]
[310682770,1704640344077,-514.08,0.00022562,2]
[310682771,1704640344089,-514.29,0.00022562,2]
[310682772,1704640344100,-1078.12,0.00022562,2]
[310682773,1704640344110,-1078.12,0.00022562,2]
[310682774,1704640344120,-1078.12,0.00022562,2]
[310682775,1704640344129,-1078.12,0.00022562,2]
[310682776,1704640344138,-1078.28,0.00022562,2]
[310682777,1704640344148,-613.78,0.00022562,2]
[310682778,1704640344157,-613.78,0.00022562,2]
[310682779,1704640344167,-613.78,0.00022562,2]
[310682780,1704640344177,-613.78,0.00022562,2]
[310682781,1704640344187,-613.93,0.00022562,2]
[310682782,1704640344197,-500.0,0.00022562,2]
[310682783,1704640344207,-500.0,0.00022562,2]
[310682784,1704640344217,-500.0,0.00022562,2]
[310682785,1704640344226,-154.38,0.00022562,2]
[310682786,1704640344236,-652.23,0.00022562,2]
[310682787,1704640344246,-630.17806308,0.00022562,2]
[310682788,1704640344256,-3252.5,0.00022562,2]
[310682789,1704640344266,-1062.92,0.00022562,2]
[310682790,1704640344275,-1062.92,0.00022562,2]
[310682791,1704640344285,-1062.92,0.00022562,2]
[310682792,1704640344295,-1062.92,0.00022562,2]
[310682793,1704640344304,-1063.12,0.00022562,2]
[310682794,1704640344314,-500.0,0.00022562,2]
[310682795,1704640344324,-500.0,0.00022562,2]
[310682796,1704640344334,-2466.24,0.00022562,2]
[310682797,1704640344344,-500.0,0.00022562,2]
[310682798,1704640344353,-2466.24,0.00022562,2]
[310682799,1704640344363,-2466.24,0.00022562,2]
[310682800,1704640344374,-2466.24,0.00022562,2]
[310682801,1704640344383,-2599.03,0.00022562,2]
[310682802,1704640344392,-2599.03,0.00022562,2]
[310682803,1704640344402,-2599.03,0.00022562,2]
[310682804,1704640344412,-2599.03,0.00022562,2]
[310682805,1704640344422,-2599.13,0.00022562,2]
[310682806,1704640344431,-670.43,0.00022562,2]
[310682807,1704640344442,-2466.32,0.00022562,2]
[310682808,1704640344452,-500.0,0.00022562,2]
[310682809,1704640344462,-500.0,0.00022562,2]
[310682810,1704640344472,-500.0,0.00022562,2]
[310682811,1704640344482,-1350.81,0.00022562,2]
[310682812,1704640344492,-1350.81,0.00022562,2]
[310682813,1704640344502,-1350.81,0.00022562,2]
[310682814,1704640344512,-1350.81,0.00022562,2]
[310682815,1704640344521,-1350.85,0.00022562,2]
[310682816,1704640344531,-815.73,0.00022563,2]
[310682817,1704640344541,-250.11930593,0.00022563,2]
[310682818,1704640344551,-1262.61,0.00022563,2]
[310682819,1704640344560,-768.65,0.00022563,2]
[310682820,1704640344570,-893.84,0.00022563,2]
[310682821,1704640344578,-670.22,0.00022563,2]
[310682822,1704640344588,-500.0,0.00022563,2]
[310682823,1704640344598,-602.96,0.00022563,2]
[310682824,1704640344607,-355.58,0.00022563,2]
[310682825,1704640344617,-588.15,0.00022563,2]
[310682826,1704640344628,-560.82,0.00022563,2]
[310682827,1704640344637,-624.46,0.00022563,2]
[310682828,1704640344646,-500.0,0.00022563,2]
[310682829,1704640344655,-634.52,0.00022563,2]
[310682830,1704640344664,-500.0,0.00022563,2]
[310682831,1704640344674,-528.74,0.00022563,2]
[310682832,1704640344684,-500.0,0.00022563,2]
[310682833,1704640344693,-1947.98,0.00022563,2]
[310682834,1704640344703,-500.0,0.00022563,2]
[310682835,1704640344715,-1416.95,0.00022563,2]
[310682836,1704640344725,-556.96486335,0.00022563,2]
[310682837,1704640344734,-525.59,0.00022563,2]
[310682838,1704640344745,-671.35,0.00022563,2]
[310682839,1704640344756,-506.3,0.00022563,2]
[310682840,1704640344766,-500.0,0.00022563,2]
[310682841,1704640344776,-863.3,0.00022563,2]
[310682842,1704640344785,-1303.58,0.00022563,2]
[310682843,1704640344795,-1028.57,0.00022563,2]
[310682844,1704640344805,-594.3,0.00022563,2]
[310682845,1704640344865,-154.53,0.00022563,2]
[310682846,1704640344875,-500.0,0.00022563,2]
[310682847,1704640344884,-797.07,0.00022563,2]
[310682848,1704640344894,-512.6,0.00022563,2]
[310682849,1704640344903,-169.56344575,0.00022563,2]
[310682850,1704640344912,-501.6,0.00022563,2]
[310682851,1704640344922,-610.67,0.00022563,2]
[310682852,1704640344931,-2080.75,0.00022563,2]
[310682853,1704640344940,-500.0,0.00022563,2]
[310682854,1704640344949,-591.54,0.00022563,2]
[310682855,1704640344958,-500.0,0.00022563,2]
[310682856,1704640344967,-253.24401167,0.00022563,2]
[310682857,1704640344977,-1111.37,0.00022563,2]
[310682858,1704640344987,-543.69,0.00022563,2]
[310682859,1704640344997,-917.63,0.00022563,2]
[310682860,1704640345007,-557.78,0.00022563,2]
[310682861,1704640345017,-732.55,0.00022563,2]
[310682862,1704640345026,-500.0,0.00022563,2]
[310682863,1704640345035,-507.95,0.00022563,2]
[310682864,1704640345044,-500.0,0.00022563,2]
[310682865,1704640345054,-680.69,0.00022563,2]
[310682866,1704640345065,-795.75,0.00022563,2]
[310682867,1704640345074,-500.0,0.00022563,2]
[310682868,1704640345085,-589.3,0.00022563,2]
[310682869,1704640345095,-993.1,0.00022563,2]
[310682870,1704640345105,-500.0,0.00022563,2]
[310682871,1704640345114,-1112.95,0.00022563,2]
[310682872,1704640345124,-1159.87,0.00022563,2]
[310682873,1704640345133,-505.4,0.00022563,2]
[310682874,1704640345144,-500.0,0.00022563,2]
[310682875,1704640345155,-1080.45,0.00022563,2]
[310682876,1704640345165,-2235.29,0.00022563,2]
[310682877,1704640345174,-610.12,0.00022563,2]
[310682878,1704640345184,-563.8,0.00022563,2]
[310682879,1704640345195,-2303.52,0.00022563,2]
[310682880,1704640345205,-500.0,0.00022563,2]